Cogmind - Beta 12 @@@ ROGUE MODE // 2024.01.15 @ 00:20:11 Player: puppuppit Result: Destroyed by G-34 Mercenary with Small Laser Performance ------------- Evolutions (0) 0 Regions Visited (2) 400 Robots Destroyed (34) 170 Value Destroyed (675) 675 Prototype IDs (0) 0 Alien Tech Used (0) 0 Bonus (-29) -29 TOTAL SCORE: 1216 Bonus ------- Friendly Fire -29 Cogmind --------- Core Integrity 0/250 Matter 230/300 Energy 125/125 System Corruption 0% Temperature Cool (7) Movement Flying (40) Location -10/Mines Parts ------- > --- POWER (1) -------- Light Ion Engine > --- PROPULSION (2) --- Flight Unit > --- UTILITY (2) ------ Hacking Suite Hacking Suite > --- WEAPON (2) ------- (None) > --- INVENTORY (5) ---- Light Ion Engine Hacking Suite Rocket Launcher Heavy Explosive Trap Peak State ------------ > --- POWER ------------ Light Ion Engine > --- PROPULSION ------- Hover Unit Hover Unit > --- UTILITY ---------- Small Storage Unit Hacking Suite > --- WEAPON ----------- Particle Gun Assault Rifle > --- INVENTORY -------- Light Ion Engine Hover Unit Signal Interpreter Hacking Suite Hacking Suite EM Pulse Gun Assault Rifle Light Assault Rifle [Rating: 11] Favorites ----------- Power Light Ion Engine Engine Light Ion Engine Propulsion Hover Unit Wheel Compact Wheel Hover Unit Hover Unit Flight Unit Flight Unit Utility Small Storage Unit Storage Small Storage Unit Processor Signal Interpreter Hackware Hacking Suite Weapon Assault Rifle Energy Gun Particle Gun Energy Cannon Particle Cannon Ballistic Gun Assault Rifle Launcher Rocket Launcher Build | -11 -10 -10 ------- Run | Jun Mat Min Slots Evolved . | . . . Power . | . . . Propulsion . | . . . Utility . | . . . Weapon . | . . . Parts Attached 34 | 6 19 9 Power 7 | 1 4 2 Engine 7 | 1 4 2 Core . | . . . Reactor . | . . . Propulsion 14 | 2 8 4 Treads . | . . . Leg . | . . . Wheel 2 | 2 . . Hover 11 | . 8 3 Flight 1 | . . 1 Utility 4 | 1 2 1 Device . | . . . Storage 1 | 1 . . Processor 1 | . 1 . Hackware 2 | . 1 1 Protection . | . . . Artifact . | . . . Weapon 9 | 2 5 2 Energy Gun 3 | . 3 . Energy Cannon 1 | . 1 . Ballistic Gun 4 | 2 1 1 Ballistic Cannon . | . . . Launcher 1 | . . 1 Special Weapon . | . . . Impact Weapon . | . . . Slashing Weapon . | . . . Piercing Weapon . | . . . Special Melee Weapon . | . . . Unidentified Prototypes . | . . . Parts Lost 5 | . 1 4 Power . | . . . Propulsion 5 | . 1 4 Utility . | . . . Weapon . | . . . Highest Loss Streak 2 | . 1 2 To Critical Strikes . | . . . Average Slot Usage (%) 91 | . 97 82 Engine 14 | . 14 14 Wheel 3 | . 5 . Hover 20 | . 22 19 Storage 12 | . 14 10 Processor 3 | . 6 . Hackware 11 | . 6 17 Energy Gun 5 | . 2 9 Ballistic Gun 18 | . 25 9 Naked Turns . | . . . Heaviest Build 13 | 12 13 12 Greatest Support 26 | 26 26 12 Greatest Overweight (x) 3 | . 1 3 Average Overweight (x) . | . . . Largest Inventory Capacity 8 | 8 8 8 Average Capacity 7 | 6 8 7 Most Carried 8 | 1 8 8 Average Carried 6 | . 5 6 Final Capacity 8 | 8 8 5 Final Carried 8 | 1 8 4 Class Distribution -------------------- 54% | Scavenger-Mutant 36% | Mutant 9% | Hacker-Mutant Dominant Class ---------------- Mutant | -10/Materials Scavenger-Mutant | -10/Mines Resources | -11 -10 -10 ----------- Run | Jun Mat Min Matter Collected 1020 | 37 808 175 Remotely . | . . . Salvage Created 1050 | . 911 139 Parts 79 | . 64 15 Haulers Intercepted 2 | . 2 . Recyclers Shooed 2 | . 2 . Parts Field Recycled . | . . . Retrieved Matter . | . . . Parts Self-Destructed . | . . . Prevented . | . . . Kills | -11 -10 -10 ------- Run | Jun Mat Min Combat Hostiles Destroyed 35 | . 14 21 Guns 21 | . 14 7 AOE 14 | . . 14 Classes Destroyed 8 | . 7 1 Worker 2 | . 2 . Hauler 2 | . 2 . Recycler 2 | . 2 . Operator 4 | . 4 . Watcher 3 | . 3 . Swarmer 8 | . 2 6 Grunt 13 | . 12 1 Assembled 14 | . . 14 Best Kill Streak 14 | . 5 14 Combat Bots Only 14 | . 3 14 Max Kills in Single Turn 6 | . 2 6 Gunslinging . | . . . Exploded 6 | . . 6 Melee . | . . . Uniques/NPCs Destroyed . | . . . Combat | -11 -10 -10 -------- Run | Jun Mat Min Damage Taken 908 | . 460 448 Core 250 | . 131 119 Absorbed by Shields . | . . . Core Remaining (%) 100 | 100 . . Volleys Fired 115 | . 90 25 Largest 2 | . 2 2 Hottest 85 | . 85 85 Shots Fired 223 | . 180 43 Gun 216 | . 180 36 Cannon . | . . . Launcher 7 | . . 7 Special . | . . . Kinetic 185 | . 167 18 Thermal 29 | . 11 18 Explosive 7 | . . 7 Electromagnetic 2 | . 2 . Robot Hit Streak 9 | . 9 4 Robot Miss Streak 5 | . 3 5 Penetration Max . | . . . Secondary Targets 4 | . 4 . Max Gunslinging Chain 1 | . 1 . Shots Hit Robots 136 | . 115 21 Core Hits 87 | . 45 42 Critical Kills . | . . . Critical Parts Destroyed . | . . . Critical Strikes . | . . . Melee Attacks . | . . . Impact . | . . . Slashing . | . . . Piercing . | . . . Sneak Attacks . | . . . Combat Hostiles . | . . . Follow-up Attacks . | . . . Damage Inflicted 2710 | . 1505 1205 Guns 1700 | . 1505 195 Cannons . | . . . Explosions 1010 | . . 1010 Melee . | . . . Ramming . | . . . Kinetic 1490 | . 1397 93 Thermal 210 | . 108 102 Explosive 1010 | . . 1010 Electromagnetic . | . . . Impact . | . . . Slashing . | . . . Piercing . | . . . Highest Corruption . | . . . Average Corruption . | . . . Corruption Purged . | . . . Corruption Blocked . | . . . Overload Shots . | . . . Overflow Damage 47 | . . 47 Projectiles . | . . . Explosions 47 | . . 47 Melee . | . . . Knockbacks . | . . . Impact . | . . . Kinetic . | . . . Secondary . | . . . Self-Inflicted Damage 45 | . . 45 Shots 2 | . . 2 Rammed 1 | . 1 . Targets Rammed 1 | . 1 . Kicked . | . . . Crushed . | . . . Highest Temperature 246 | . 246 179 Average Temperature 63 | . 71 57 Received Heat Transfer 251 | . 216 35 Siege Activations . | . . . Robots Corrupted . | . . . Combat Hostiles . | . . . Parts Fried . | . . . Impact Corruptions . | . . . Robots Melted . | . . . Combat Hostiles . | . . . Parts Melted . | . . . Heat Transferred 444 | . 222 222 Parts Sabotaged . | . . . Parts Stolen . | . . . Parts Stripped . | . . . Power Chain Reactions . | . . . Missiles Intercepted . | . . . Alert | -11 -10 -10 ------- Run | Jun Mat Min Peak Influence 361 | . 335 361 Initial 130 | . . 130 Average 196 | . 182 228 Maximum Alert Level 1 | . 1 1 Low Security (%) 50 | 100 54 41 Level 1 49 | . 45 58 Level 2 . | . . . Level 3 . | . . . Level 4 . | . . . Level 5 . | . . . High Security . | . . . Max Security . | . . . Squads Dispatched 5 | . 5 . Investigation 1 | . 1 . Extermination . | . . . Reinforcement 4 | . 4 . Assault . | . . . Garrison . | . . . Intercept . | . . . Searches Triggered . | . . . Construction Impeded . | . . . Haulers Reinforced . | . . . Active Scanning Responses . | . . . Cargo Convoy Interrupts . | . . . Stealth | -11 -10 -10 --------- Run | Jun Mat Min Distress Signals 2 | . 2 . Communications Jammed . | . . . Distress Signals . | . . . Times Spotted 58 | . 27 31 Peak Tracking Total 18 | . 4 18 Tactical Retreats 4 | . 1 3 Traps | -11 -10 -10 ------- Run | Jun Mat Min Traps Triggered 1 | . 1 . Indirectly . | . . . Trap Hack Attempts . | . . . Triggered . | . . . Disarmed . | . . . Reprogrammed . | . . . Reused 2 | . . 2 Traps Extracted . | . . . Installed 3 | . . 3 Triggered 2 | . . 2 Most Traps Carried 2 | . . 2 Machines | -11 -10 -10 ---------- Run | Jun Mat Min Machines Disabled 1 | . 1 . Max in Single Turn 1 | . 1 . Machines Repaired . | . . . Machines Sabotaged . | . . . Overloaded Fab Kills . | . . . Hacking | -11 -10 -10 --------- Run | Jun Mat Min Machines Accessed 5 | . 5 . Terminals 4 | . 4 . Fabricators . | . . . Repair Stations . | . . . Recycling Units 1 | . 1 . Scanalyzers . | . . . Garrison Access . | . . . Total Hacks 13 | . 13 . Successful 4 | . 4 . Failed 8 | . 8 . Catastrophic . | . . . Database Lockouts 1 | . 1 . Manual 6 | . 6 . Terminals 11 | . 11 . Fabricators . | . . . Repair Stations . | . . . Recycling Units 2 | . 2 . Scanalyzers . | . . . Garrison Access . | . . . Terminal Hacks 3 | . 3 . Robot Analysis 3 | . 3 . Fabricator Hacks . | . . . Repair Station Hacks . | . . . Recycling Unit Hacks 1 | . 1 . Retrieve Matter 1 | . 1 . Scanalyzer . | . . . Garrison Access Hacks . | . . . Unauthorized Hacks . | . . . Terminals . | . . . Fabricators . | . . . Repair Stations . | . . . Recycling Units . | . . . Scanalyzers . | . . . Garrison Access . | . . . Data Cores Recovered . | . . . Used . | . . . Hacking Detections 5 | . 5 . Full Trace Events 1 | . 1 . Feedback Events . | . . . Feedback Blocked . | . . . Robot Schematics Acquired . | . . . Robots Built . | . . . Authchips . | . . . Time . | . . . Total Robot Build Rating . | . . . Part Schematics Acquired . | . . . Parts Built . | . . . Authchips . | . . . Time . | . . . Total Part Build Rating . | . . . Parts Repaired . | . . . Time . | . . . Parts Recycled . | . . . Recycled Matter . | . . . Retrieved Matter . | . . . Retrieved Components . | . . . Parts Scanalyzed . | . . . Part Schematics Acquired . | . . . Parts Damaged . | . . . Bothacking | -11 -10 -10 ------------ Run | Jun Mat Min Used RIF Installer . | . . . Robots Hacked . | . . . Non-combat . | . . . Combat . | . . . Robot Hacks Applied . | . . . Relay Couplers Released . | . . . Fabnet Peak Effective % . | . . . Robots Rewired . | . . . Allies Hacked . | . . . Hacks Repelled . | . . . Allies | -11 -10 -10 -------- Run | Jun Mat Min Total Allies . | . . . Largest Group . | . . . Highest-Rated Group . | . . . Highest-Rated Ally . | . . . Total Orders . | . . . Ally Attacks . | . . . Total Damage . | . . . Kills . | . . . Allies Corrupted . | . . . Allies Melted . | . . . Intel | -11 -10 -10 ------- Run | Jun Mat Min Robot Analysis Total 3 | . 3 . Derelict Logs Recovered 1 | . . 1 Drone Launches . | . . . Drone Recoveries . | . . . Exploration | -11 -10 -10 ------------- Run | Jun Mat Min Turns Passed 1292 | 39 710 543 Spaces Moved 1445 | 33 605 807 Core 245 | 2 . 243 Treads . | . . . Legs . | . . . Wheels 124 | 31 93 . Hover 1049 | . 512 537 Flight 27 | . . 27 Fastest Speed 40 | 50 56 40 Average Speed 58 | 88 61 54 Slowest Speed 200 | 100 120 200 Overloaded Moves . | . . . Propulsion Burnouts . | . . . Robots Hopped . | . . . Cave-ins Triggered . | . . . Exploration Rate (%) 54 | 3 65 94 Regions Visited 2 Branch Regions 1 Pre-discovered Areas 1 | . . 1 Known Exits Taken 1 | . 1 . Unknown Exits Taken 1 | 1 . . Scrap Searched 1 | . . 1 Spaces Dug . | . . . Terrain Destroyed 51 | . . 51 Melee . | . . . Projectile . | . . . AOE 51 | . . 51 Terrain Rammed . | . . . Walls Destroyed . | . . . Machines Disabled . | . . . Actions | -11 -10 -10 --------- Run | Jun Mat Min Total 1682 | 39 763 880 Wait 36 | . 25 11 Move 1443 | 32 604 807 Hop . | . . . Pick Up 21 | 1 10 10 Fast Attach 14 | 6 7 1 Attach 5 | . 2 3 Detach 3 | . 2 1 Swap 15 | . 10 5 Drop 26 | . 12 14 Fire 115 | . 90 25 Melee . | . . . Ram 1 | . 1 . Kick . | . . . Crush . | . . . Escape Stasis . | . . . Rewire . | . . . Trap 3 | . . 3 Miscellaneous . | . . . Route ------- -11/Junkyard -10/Materials (discovered 4 exits: [*Mat x2] / *Min x2) -10/Mines (discovered 2 exits: [*Mat x2]) History --------- Turn | Location | Event 13 | -11/Junkyard | Discovered new exit (range 16) 40 | -11/Junkyard | Entered Materials 115 | -10/Materials | Discovered new exit (range 16) 294 | -10/Materials | Identified exit to Mines 316 | -10/Materials | Build established: Mutant 455 | -10/Materials | Discovered new exit (range 4) 626 | -10/Materials | Discovered exit to Mines (range 15) 651 | -10/Materials | Central database locked down 662 | -10/Materials | Discovered new exit (range 15) 735 | -10/Materials | Core integrity fell below 50% 750 | -10/Materials | Entered Mines 760 | -10/Mines | Met a Derelict bent on vengeance 790 | -10/Mines | Build established: Scavenger-Mutant 856 | -10/Mines | Found a hidden stash of uninstalled traps 902 | -10/Mines | Received a Rocket Launcher from a helpful Derelict 961 | -10/Mines | Discovered new exit (range 5) 989 | -10/Mines | Discovered new exit (range 16) 1129 | -10/Mines | Assembled infested the area 1134 | -10/Mines | Assisted by a Guerilla fighting off Assembled 1142 | -10/Mines | Core integrity fell below 20% 1167 | -10/Mines | Destroyed 14 combat bots 1293 | -10/Mines | Destroyed by G-34 Mercenary with Small Laser Last Messages --------------- 01147_ The unstable cave ceiling collapses. 01148_ Knocked back. 01150_ as-42421 suffers critical hit (Destroy). 01150_ as-42421 destroyed. 01154_ Dropped Particle Gun. 01155_ The unstable cave ceiling collapses. 01155_ Dropped Sml. Storage Unit. 01156_ Dropped Lgt. Ion Engine. 01157_ The unstable cave ceiling collapses. 01157_ Acquired Hacking Suite. 01158_ The unstable cave ceiling collapses. 01158_ 2 Matter crushed. 01159_ Dropped Lgt. Ion Engine. 01162_ Acquired Heavy Explosive Trap. 01166_ The unstable cave ceiling collapses. 01241_ Acquired 30 matter. 01281_ Acquired Flight Unit. 01282_ Acquired 7 matter. 01293_ Dropped Heavy Explosive Trap. 01293_ Installed Heavy Explosive Trap. Map ----- +----------------------------------------------------+ | ?????????????# """ #?####?????????????????????? | | ?????????????# """ ### ##??????????????????## | | ?????????????# ## ##????????????????? | | ?????????????# ## ##????????????????? | | ?????????????# ## ##????????????????? | | ????????########## #### ####?????????????? | | ???????# """" #??# #??# ##????????????? | | ???????# """" #### #???# < #????????????? | | ####???# """" #?????# ##???????????? | | # ##??# #### ####???# ##??????????? | | ##?# #??# # ##### ##?????????? | | ############# # # ## ##????????? | | #????#=% ## ### ##???????? | | ] ##???# #### # # ## #???????? | | ##??#=#??# #### ### ### ######### | | ##?# #??# ####### ## #?# | | ### #??#####???## #?### | | #?????????## """ #???############ | | #### #####?????????# """ ##????????????## | | ##??### #?????????????# """ ##?????????### | | #?????# #?????????????# #????????## | | #?##### ###???????????## g ########## | | ### ## #????????????## | | ### #?????????????# ## | | ### #?# #????????????## r ####=############## | | ?## #?# #?????###???##@ ##?# ####?????????# | | ?# #?# #?##### ##?## #?#[ #?????????# | | ?# ### #?# ### ###### #?????????# | | ?## ## #?# # # #?????????# | | ??## ## #?# #### ## ### #?????##### | | ???# ## ### #??# ### #?# #???### ## | | ???# #??## ###?# #?# #??## # | | ???## ####### #???### ##???# ### #??# # | | ###### #?????# #?????## #????# #??# # | | #?????# #??????# ## ##????##### #???# | | ##### #?????# #??????# #?##?????????# #???# " | | #???# ####??# #??????# #????????????# ##### "%## | | #???# ## ?? #??????# #????????????# "#? | | ##??# ## #??###?###### #?#######????#### ### # | | ##?# ## #??????# ### ##??????# #?## | | ### ## ####???# ####### #?####?# #??## | | ##### #?????# #?## ### #???# | | ## #?????# #?## #??? | | ########## #######?????# #??# ####??? | | #????#####!#??????????## ##?## """ #?????? | | ###??# [%#?????????## #??# """ ##?????## | | ##?# ###*#????????## #??# """ ##??????# | | ### #?# #????????# #??## ##?????? | | ## #?# ########## #???### ##?????# | | ## #?#*%! [=%%*# ##?????## #????## | +----------------------------------------------------+ Best States ------------- Heat Dissipation 25 Energy Generation 10 Energy Capacity 125 Matter Stores 300 Matter Capacity 300 Sight Range 16 Terrain Scan Density 10 Evasion (%) 62 Offensive Hacking 20 Item Schematics ----------------- None Robot Schematics ------------------ None Fabricated ------------ Nothing Alien Tech Used ----------------- None Achievements -------------- None Challenges ------------ None Game ------ Seed ControlSpikedVibroblade Manual? 0 Play Time 00:22:14 Cumulative 68.1 hours Start 2024.01.15 @ 00:00:35 End 2024.01.15 @ 00:20:11 Sessions 1 Manual Loads 0 Difficulty Rogue Special Mode None Game No. 42 Rogue 42 Adventurer 0 Explorer 0 Win Type - Total 0 Types 0/0/0/0/0/0/0/0/0 Lore% 54 Gallery% 51 Achievement% 43 Wizard Run 0 Options --------- ASCII 0 Keyboard 1 Movement Arrows Keybinds 0 Fullscreen 1 Font 12/Proggy Map View 83x54 Tactical HUD 1 Map Filters NONE Filters NONE Steam 0 RUN: 5b069b38-7817-4901-a8b9-4a93bd92aa37